[Event "GrandPrix_29.05"]
[Site "Chess.com"]
[Date "2020.05.29"]
[Round "5"]
[White "Andrjywa"]
[Black "ZverevLev"]
[Result "0-1"]
[WhiteElo "2052"]
[BlackElo "2246"]
[TimeControl "600+2"]
[EndTime "11:28:49 PDT"]
[Termination "ZverevLev won by resignation"]

1. Nf3 {[%clk 0:10:01.9]} 1... d5 {[%clk 0:09:59.7]} 2. g3 {[%clk 0:10:02.6]}
2... c5 {[%clk 0:09:59.1]} 3. Bg2 {[%clk 0:10:03.7]} 3... Nc6 {[%clk 0:09:56.9]}
4. d4 {[%clk 0:10:01.5]} 4... Nf6 {[%clk 0:09:54.4]} 5. O-O {[%clk 0:10:00.3]}
5... e6 {[%clk 0:09:54.8]} 6. Bg5 {[%clk 0:09:18.9]} 6... Be7 {[%clk 0:09:51.8]}
7. Bxf6 {[%clk 0:09:12.5]} 7... Bxf6 {[%clk 0:09:50]} 8. c3 {[%clk 0:09:14]}
8... O-O {[%clk 0:09:47.5]} 9. dxc5 {[%clk 0:09:13.2]} 9... e5 {[%clk
0:09:26.1]} 10. Na3 {[%clk 0:09:07.8]} 10... Be6 {[%clk 0:09:17.5]} 11. Nc2
{[%clk 0:09:06.1]} 11... Qc7 {[%clk 0:09:04.4]} 12. b4 {[%clk 0:09:05]} 12...
Rad8 {[%clk 0:08:52.8]} 13. e3 {[%clk 0:08:33.2]} 13... Rfe8 {[%clk 0:08:49.1]}
14. Qc1 {[%clk 0:07:42]} 14... a5 {[%clk 0:08:14]} 15. a3 {[%clk 0:07:40.7]}
15... axb4 {[%clk 0:08:12.7]} 16. axb4 {[%clk 0:07:41.3]} 16... b6 {[%clk
0:08:05.9]} 17. b5 {[%clk 0:06:43.6]} 17... Na5 {[%clk 0:08:04.3]} 18. c6 {[%clk
0:06:43.3]} 18... Nb3 {[%clk 0:08:03]} 19. Qb2 {[%clk 0:06:39.9]} 19... Nxa1
{[%clk 0:08:03]} 20. Rxa1 {[%clk 0:06:41.8]} 20... Ra8 {[%clk 0:08:01]} 21. Nb4
{[%clk 0:06:37.3]} 21... Qd6 {[%clk 0:07:44.8]} 22. Nd2 {[%clk 0:06:00.9]} 22...
e4 {[%clk 0:07:27.4]} 23. Na6 {[%clk 0:05:02.3]} 23... Bc8 {[%clk 0:07:17.6]}
24. Qa3 {[%clk 0:04:36.8]} 24... Qxa3 {[%clk 0:07:04.4]} 25. Rxa3 {[%clk
0:04:38.7]} 25... Bxa6 {[%clk 0:07:04.5]} 26. Rxa6 {[%clk 0:04:39.4]} 26... Rxa6
{[%clk 0:07:04.3]} 27. bxa6 {[%clk 0:04:41.3]} 27... Ra8 {[%clk 0:07:03.9]} 28.
Bf1 {[%clk 0:04:30.7]} 28... Bxc3 {[%clk 0:07:03.3]} 29. Nb3 {[%clk 0:04:20.4]}
29... Be5 {[%clk 0:07:03.4]} 30. Nd4 {[%clk 0:04:17.3]} 30... Kf8 {[%clk
0:07:02.7]} 31. Nb5 {[%clk 0:04:10.8]} 31... Rxa6 {[%clk 0:07:02.6]} 32. c7
{[%clk 0:04:06.3]} 32... Ra8 {[%clk 0:06:45.9]} 33. Bh3 {[%clk 0:04:06.1]} 33...
Bxc7 {[%clk 0:06:38.4]} 34. Nxc7 {[%clk 0:04:06.9]} 34... Ra5 {[%clk 0:06:38.3]}
35. Bf1 {[%clk 0:03:56.1]} 35... Ke7 {[%clk 0:06:38.9]} 36. Nb5 {[%clk
0:03:54.9]} 36... f5 {[%clk 0:06:32.9]} 37. Kg2 {[%clk 0:03:51.6]} 37... Ra1
{[%clk 0:06:23.6]} 38. Nd4 {[%clk 0:03:48.2]} 38... Kf6 {[%clk 0:06:22]} 39. h4
{[%clk 0:03:46.8]} 39... g6 {[%clk 0:06:21.5]} 40. Bb5 {[%clk 0:03:45.6]} 40...
h6 {[%clk 0:06:17.8]} 41. Bc6 {[%clk 0:03:45.8]} 41... Ra5 {[%clk 0:06:17.2]}
42. Nb3 {[%clk 0:03:30.6]} 42... Ra3 {[%clk 0:06:10.7]} 43. Bxd5 {[%clk
0:03:31.9]} 43... g5 {[%clk 0:06:11.6]} 44. Nd4 {[%clk 0:03:26.5]} 44... Rd3
{[%clk 0:06:02.2]} 45. Bc4 {[%clk 0:03:19]} 45... Rd2 {[%clk 0:06:01.8]} 46. Nb5
{[%clk 0:02:39.4]} 46... Ke5 {[%clk 0:05:56.3]} 47. Nd4 {[%clk 0:01:54.4]} 47...
f4 {[%clk 0:05:54.7]} 48. gxf4+ {[%clk 0:01:54.7]} 48... gxf4 {[%clk 0:05:53.9]}
49. Kf1 {[%clk 0:01:44.7]} 49... f3 {[%clk 0:05:50.5]} 50. Kg1 {[%clk
0:01:43.9]} 50... Rd1+ {[%clk 0:05:48.2]} 51. Kh2 {[%clk 0:01:45]} 51... Rc1
{[%clk 0:05:26.9]} 52. Bb5 {[%clk 0:01:39.1]} 52... Rc7 {[%clk 0:05:26]} 53. Bf1
{[%clk 0:01:01.2]} 53... Rg7 {[%clk 0:05:23.3]} 54. Bh3 {[%clk 0:01:01.2]} 54...
Rc7 {[%clk 0:05:09.7]} 55. Nf5 {[%clk 0:00:59.7]} 55... Rc2 {[%clk 0:05:05.6]}
56. Kg3 {[%clk 0:01:00.1]} 56... h5 {[%clk 0:05:02]} 57. Nd4 {[%clk 0:00:59.5]}
57... Rd2 {[%clk 0:05:00.5]} 58. Bd7 {[%clk 0:00:59.5]} 58... Rd1 {[%clk
0:04:58.3]} 59. Bb5 {[%clk 0:00:57.1]} 59... Rg1+ {[%clk 0:04:57.6]} 60. Kh3
{[%clk 0:00:53.1]} 60... Rg2 {[%clk 0:04:58.4]} 61. Be8 {[%clk 0:00:51]} 61...
Rxf2 {[%clk 0:04:56.7]} 62. Bxh5 {[%clk 0:00:52.6]} 62... Ra2 {[%clk 0:04:50.1]}
63. Bg4 {[%clk 0:00:49.4]} 63... Ra1 {[%clk 0:04:48.4]} 64. Kh2 {[%clk
0:00:49.2]} 64... f2 {[%clk 0:04:47.6]} 0-1

[Event "GrandPrix_29.05"]
[Site "Chess.com"]
[Date "2020.05.29"]
[Round "5"]
[White "Mugzyyy"]
[Black "Misterlose0"]
[Result "1/2-1/2"]
[WhiteElo "2518"]
[BlackElo "1598"]
[TimeControl "600+2"]
[EndTime "11:28:50 PDT"]
[Termination "Game drawn - insufficient material"]

1. d4 {[%clk 0:09:48.9]} 1... Nf6 {[%clk 0:09:59.4]} 2. c4 {[%clk 0:09:20.4]}
2... c5 {[%clk 0:10:00.5]} 3. d5 {[%clk 0:09:19.1]} 3... e6 {[%clk 0:10:02.4]}
4. Nc3 {[%clk 0:09:19.8]} 4... exd5 {[%clk 0:10:04]} 5. cxd5 {[%clk 0:09:21.7]}
5... d6 {[%clk 0:10:05.9]} 6. e4 {[%clk 0:09:20.6]} 6... g6 {[%clk 0:10:07.8]}
7. f4 {[%clk 0:09:22.1]} 7... Bg7 {[%clk 0:10:07.7]} 8. Bb5+ {[%clk 0:09:23.7]}
8... Nfd7 {[%clk 0:10:08.2]} 9. Nf3 {[%clk 0:09:23.9]} 9... O-O {[%clk
0:10:10.1]} 10. O-O {[%clk 0:09:25]} 10... a6 {[%clk 0:10:11]} 11. Bd3 {[%clk
0:09:26.4]} 11... b5 {[%clk 0:10:12.5]} 12. a3 {[%clk 0:09:27.9]} 12... Re8
{[%clk 0:10:10.1]} 13. Kh1 {[%clk 0:09:29.1]} 13... Ra7 {[%clk 0:10:09.7]} 14.
Qe1 {[%clk 0:09:22.9]} 14... Nf6 {[%clk 0:09:39]} 15. Be3 {[%clk 0:09:08.7]}
15... Rae7 {[%clk 0:09:08.1]} 16. b4 {[%clk 0:08:54.4]} 16... Nbd7 {[%clk
0:08:28.5]} 17. Rc1 {[%clk 0:08:44.9]} 17... Bb7 {[%clk 0:07:55.2]} 18. Qh4
{[%clk 0:08:42.3]} 18... cxb4 {[%clk 0:05:35.7]} 19. axb4 {[%clk 0:08:42.1]}
19... Nxd5 {[%clk 0:05:37.3]} 20. Nxd5 {[%clk 0:08:37.3]} 20... Bxd5 {[%clk
0:05:38.2]} 21. f5 {[%clk 0:08:24.9]} 21... Bxe4 {[%clk 0:03:52.7]} 22. Ng5
{[%clk 0:08:17.5]} 22... Bxd3 {[%clk 0:03:40.2]} 23. Qxh7+ {[%clk 0:08:15.9]}
23... Kf8 {[%clk 0:03:40.9]} 24. Ne6+ {[%clk 0:05:49]} 24... Rxe6 {[%clk
0:03:07.9]} 25. fxe6 {[%clk 0:05:50.9]} 25... Rxe6 {[%clk 0:03:09.8]} 26. Bh6
{[%clk 0:05:48.6]} 26... Bxf1 {[%clk 0:02:29.9]} 27. Qxg7+ {[%clk 0:05:34.5]}
27... Ke8 {[%clk 0:02:07.7]} 28. Qg8+ {[%clk 0:05:25.6]} 28... Ke7 {[%clk
0:02:06.1]} 29. Bg5+ {[%clk 0:05:25.3]} 29... Nf6 {[%clk 0:02:01.6]} 30. Qxd8+
{[%clk 0:05:24.9]} 30... Kxd8 {[%clk 0:02:03]} 31. Rxf1 {[%clk 0:05:26.6]} 31...
Ke7 {[%clk 0:02:02.5]} 32. h4 {[%clk 0:05:25]} 32... d5 {[%clk 0:01:57.4]} 33.
g4 {[%clk 0:05:24.8]} 33... d4 {[%clk 0:01:10.5]} 34. h5 {[%clk 0:05:23.1]}
34... gxh5 {[%clk 0:01:11.4]} 35. gxh5 {[%clk 0:05:25]} 35... d3 {[%clk
0:01:09.7]} 36. h6 {[%clk 0:05:25.6]} 36... d2 {[%clk 0:01:10]} 37. Bxd2 {[%clk
0:04:48.3]} 37... Ne4 {[%clk 0:00:32.5]} 38. Bf4 {[%clk 0:04:33.1]} 38... Rxh6+
{[%clk 0:00:23.2]} 39. Bxh6 {[%clk 0:04:32.8]} 39... Ng3+ {[%clk 0:00:24.6]} 40.
Kg2 {[%clk 0:04:34]} 40... Nxf1 {[%clk 0:00:26.5]} 41. Kxf1 {[%clk 0:04:35.9]}
41... Kd7 {[%clk 0:00:15.9]} 42. Be3 {[%clk 0:04:01.8]} 42... Kc6 {[%clk
0:00:15.5]} 43. Bg5 {[%clk 0:03:55.3]} 43... a5 {[%clk 0:00:15.8]} 44. bxa5
{[%clk 0:03:57.2]} 44... Kb7 {[%clk 0:00:14.9]} 45. Ke2 {[%clk 0:03:58.4]} 45...
f6 {[%clk 0:00:13.1]} 46. Bxf6 {[%clk 0:03:58.3]} 46... b4 {[%clk 0:00:15]} 47.
Kd2 {[%clk 0:03:58.3]} 47... b3 {[%clk 0:00:16.9]} 48. Kc3 {[%clk 0:03:59.4]}
48... b2 {[%clk 0:00:18.8]} 49. a6+ {[%clk 0:03:59.8]} 49... Kxa6 {[%clk
0:00:18.9]} 50. Kxb2 {[%clk 0:04:01.7]} 1/2-1/2

[Event "GrandPrix_29.05"]
[Site "Chess.com"]
[Date "2020.05.29"]
[Round "5"]
[White "Belka1989"]
[Black "elohunter1999"]
[Result "0-1"]
[WhiteElo "2161"]
[BlackElo "2199"]
[TimeControl "600+2"]
[EndTime "11:28:51 PDT"]
[Termination "elohunter1999 won by resignation"]

1. d4 {[%clk 0:10:01.2]} 1... Nf6 {[%clk 0:09:59.4]} 2. Nf3 {[%clk 0:10:00.7]}
2... d5 {[%clk 0:09:59.7]} 3. Bf4 {[%clk 0:10:00.2]} 3... c5 {[%clk 0:09:59.8]}
4. e3 {[%clk 0:10:00.4]} 4... Nc6 {[%clk 0:09:59.6]} 5. c3 {[%clk 0:09:58.6]}
5... e6 {[%clk 0:09:36.8]} 6. Nbd2 {[%clk 0:09:57.1]} 6... Bd6 {[%clk
0:09:36.2]} 7. Bg3 {[%clk 0:09:57.2]} 7... O-O {[%clk 0:09:35.8]} 8. Bd3 {[%clk
0:09:56.7]} 8... b6 {[%clk 0:09:35.3]} 9. e4 {[%clk 0:09:55]} 9... Be7 {[%clk
0:09:33.7]} 10. dxc5 {[%clk 0:09:54.2]} 10... bxc5 {[%clk 0:09:08.9]} 11. O-O
{[%clk 0:09:53.5]} 11... Bb7 {[%clk 0:08:50]} 12. Re1 {[%clk 0:09:51.9]} 12...
Qb6 {[%clk 0:08:42.9]} 13. Qc2 {[%clk 0:09:31.6]} 13... h6 {[%clk 0:08:32.9]}
14. Bh4 {[%clk 0:09:09.8]} 14... Rfe8 {[%clk 0:07:42.1]} 15. Rad1 {[%clk
0:08:57.7]} 15... Rad8 {[%clk 0:07:41.3]} 16. exd5 {[%clk 0:08:50.3]} 16... exd5
{[%clk 0:07:36.7]} 17. a3 {[%clk 0:08:33.1]} 17... c4 {[%clk 0:07:06.1]} 18. Bf5
{[%clk 0:08:16.6]} 18... Bc5 {[%clk 0:06:00.4]} 19. Nf1 {[%clk 0:07:13.2]} 19...
Ne7 {[%clk 0:05:40.4]} 20. Ne3 {[%clk 0:06:17.8]} 20... Nxf5 {[%clk 0:05:22.4]}
21. Nxf5 {[%clk 0:06:15.1]} 21... Re4 {[%clk 0:04:32.1]} 22. Bxf6 {[%clk
0:05:33.2]} 22... Qxf6 {[%clk 0:04:15]} 23. N5d4 {[%clk 0:05:33.9]} 23... Rde8
{[%clk 0:04:08.5]} 24. Qd2 {[%clk 0:05:33.7]} 24... Bc8 {[%clk 0:04:00.9]} 25.
Re3 {[%clk 0:05:17]} 25... Rxe3 {[%clk 0:03:46.7]} 26. fxe3 {[%clk 0:05:18.9]}
26... Bf5 {[%clk 0:03:27]} 27. Nxf5 {[%clk 0:05:12.1]} 27... Qxf5 {[%clk
0:03:28.9]} 28. Nd4 {[%clk 0:05:06.6]} 28... Qe4 {[%clk 0:03:23]} 29. Re1 {[%clk
0:04:45.4]} 29... Bxd4 {[%clk 0:03:19.4]} 30. Qxd4 {[%clk 0:04:20.2]} 30... Qxd4
{[%clk 0:03:17.6]} 31. cxd4 {[%clk 0:04:22.1]} 31... Rb8 {[%clk 0:03:18]} 32.
Re2 {[%clk 0:04:23.2]} 32... f5 {[%clk 0:03:12.7]} 33. Kf2 {[%clk 0:04:21.9]}
33... Kf7 {[%clk 0:03:11.8]} 34. h4 {[%clk 0:04:06.1]} 34... Rb3 {[%clk
0:03:06.8]} 35. Kf3 {[%clk 0:03:41.1]} 35... g5 {[%clk 0:03:04]} 36. hxg5 {[%clk
0:03:43]} 36... hxg5 {[%clk 0:03:05.2]} 37. g3 {[%clk 0:03:33.8]} 37... a5
{[%clk 0:02:55.6]} 38. Rh2 {[%clk 0:03:24.6]} 38... a4 {[%clk 0:02:45.4]} 39.
Rc2 {[%clk 0:03:07.6]} 39... Kg6 {[%clk 0:02:37.1]} 40. Rh2 {[%clk 0:02:31.3]}
40... Rb6 {[%clk 0:02:05.4]} 41. Rc2 {[%clk 0:02:18.4]} 41... Rb8 {[%clk
0:02:03.8]} 42. Rh2 {[%clk 0:02:18.5]} 42... g4+ {[%clk 0:02:00.9]} 43. Kf4
{[%clk 0:01:52.9]} 43... Re8 {[%clk 0:02:00.2]} 0-1

[Event "GrandPrix_29.05"]
[Site "Chess.com"]
[Date "2020.05.29"]
[Round "5"]
[White "ZEN-22"]
[Black "weplaychess09"]
[Result "1-0"]
[WhiteElo "2108"]
[BlackElo "2075"]
[TimeControl "600+2"]
[EndTime "11:29:10 PDT"]
[Termination "ZEN-22 won by resignation"]

1. e3 {[%clk 0:08:12.5]} 1... d5 {[%clk 0:09:59.3]} 2. d4 {[%clk 0:08:09.3]}
2... Nf6 {[%clk 0:09:58.4]} 3. c4 {[%clk 0:08:08.9]} 3... e6 {[%clk 0:09:57.8]}
4. Nc3 {[%clk 0:08:09.3]} 4... Be7 {[%clk 0:09:58.8]} 5. Nge2 {[%clk 0:08:07.9]}
5... O-O {[%clk 0:09:59.7]} 6. Nf4 {[%clk 0:08:09.3]} 6... b6 {[%clk 0:09:51.2]}
7. cxd5 {[%clk 0:08:09.4]} 7... exd5 {[%clk 0:09:51.1]} 8. Qf3 {[%clk
0:08:08.5]} 8... Bb7 {[%clk 0:09:50.9]} 9. Bd3 {[%clk 0:08:08.6]} 9... c5 {[%clk
0:09:43.8]} 10. g4 {[%clk 0:08:07.7]} 10... cxd4 {[%clk 0:09:38]} 11. exd4
{[%clk 0:08:05.4]} 11... Re8 {[%clk 0:09:37.6]} 12. O-O {[%clk 0:08:05.2]} 12...
Bf8 {[%clk 0:09:19.5]} 13. Be3 {[%clk 0:07:55.4]} 13... Ne4 {[%clk 0:09:12.2]}
14. Rad1 {[%clk 0:07:53]} 14... Na6 {[%clk 0:08:38.5]} 15. a3 {[%clk 0:07:52.1]}
15... Rc8 {[%clk 0:08:30.9]} 16. Nfe2 {[%clk 0:07:39.7]} 16... Nb8 {[%clk
0:08:14.3]} 17. Qg2 {[%clk 0:07:36.7]} 17... Nd7 {[%clk 0:08:10.3]} 18. Bb1
{[%clk 0:07:23.3]} 18... a6 {[%clk 0:07:57.5]} 19. Nxe4 {[%clk 0:07:05.9]} 19...
dxe4 {[%clk 0:07:57.2]} 20. Nc3 {[%clk 0:07:07.3]} 20... Bxa3 {[%clk 0:07:21.8]}
21. bxa3 {[%clk 0:06:57.7]} 21... Rxc3 {[%clk 0:07:21.4]} 22. a4 {[%clk
0:06:44.2]} 22... Nf6 {[%clk 0:07:18.5]} 23. d5 {[%clk 0:06:38.2]} 23... Ra3
{[%clk 0:06:25.3]} 24. g5 {[%clk 0:06:31.2]} 24... Nd7 {[%clk 0:06:08.2]} 25.
Bc2 {[%clk 0:06:22]} 25... Qe7 {[%clk 0:05:33.2]} 26. Rd4 {[%clk 0:06:17.3]}
26... Nc5 {[%clk 0:05:27.7]} 27. Rb1 {[%clk 0:05:59.6]} 27... Qd6 {[%clk
0:05:19.2]} 28. h4 {[%clk 0:05:30.3]} 28... Ra2 {[%clk 0:04:34.7]} 29. Rc1
{[%clk 0:05:00.7]} 29... Bxd5 {[%clk 0:04:14]} 30. Rcd1 {[%clk 0:04:17.2]} 30...
Rxc2 {[%clk 0:03:56.2]} 31. Rxd5 {[%clk 0:04:16.8]} 31... Qf8 {[%clk 0:03:52.9]}
32. a5 {[%clk 0:04:15.3]} 32... bxa5 {[%clk 0:03:35.6]} 33. h5 {[%clk
0:04:15.4]} 33... a4 {[%clk 0:03:30.3]} 34. g6 {[%clk 0:04:14.5]} 34... fxg6
{[%clk 0:03:30.4]} 35. hxg6 {[%clk 0:04:16.4]} 35... h6 {[%clk 0:03:30.8]} 36.
Qg4 {[%clk 0:04:15.1]} 36... Nd3 {[%clk 0:03:20.3]} 37. Rf5 {[%clk 0:04:14]}
37... Qd6 {[%clk 0:02:51.2]} 38. Rf7 {[%clk 0:04:14.3]} 38... Re6 {[%clk
0:02:47.1]} 39. Bd4 {[%clk 0:03:36.5]} 39... Ne5 {[%clk 0:02:02.2]} 40. Bxe5
{[%clk 0:03:27.4]} 40... Qxe5 {[%clk 0:02:02.7]} 41. Qxe6 {[%clk 0:03:27.1]}
41... Qg5+ {[%clk 0:01:27.4]} 42. Kf1 {[%clk 0:03:22.7]} 42... Qb5+ {[%clk
0:01:24.9]} 43. Rd3 {[%clk 0:03:03.2]} 43... Rc1+ {[%clk 0:00:50.7]} 44. Kg2
{[%clk 0:03:02.2]} 44... Qg5+ {[%clk 0:00:47.6]} 45. Rg3 {[%clk 0:03:02.8]}
45... Rg1+ {[%clk 0:00:47.1]} 46. Kxg1 {[%clk 0:03:03.2]} 46... Qc1+ {[%clk
0:00:48]} 47. Kg2 {[%clk 0:03:04.1]} 47... Qh1+ {[%clk 0:00:48.9]} 48. Kxh1
{[%clk 0:03:04.5]} 1-0

[Event "GrandPrix_29.05"]
[Site "Chess.com"]
[Date "2020.05.29"]
[Round "5"]
[White "Jan1401"]
[Black "tigra"]
[Result "0-1"]
[WhiteElo "2360"]
[BlackElo "2593"]
[TimeControl "600+2"]
[EndTime "11:29:11 PDT"]
[Termination "tigra won by resignation"]

1. e4 {[%clk 0:09:57.4]} 1... c5 {[%clk 0:10:00.9]} 2. Nf3 {[%clk 0:09:57.8]}
2... d6 {[%clk 0:10:02.2]} 3. Bb5+ {[%clk 0:09:58.3]} 3... Bd7 {[%clk
0:10:01.3]} 4. Bxd7+ {[%clk 0:09:57.9]} 4... Qxd7 {[%clk 0:10:02.7]} 5. O-O
{[%clk 0:09:58.4]} 5... Nf6 {[%clk 0:09:59.6]} 6. Re1 {[%clk 0:09:58]} 6... g6
{[%clk 0:09:50.4]} 7. c3 {[%clk 0:09:55.2]} 7... Bg7 {[%clk 0:09:51.2]} 8. d4
{[%clk 0:09:55.9]} 8... O-O {[%clk 0:09:52.3]} 9. h3 {[%clk 0:09:40.7]} 9...
cxd4 {[%clk 0:09:46.5]} 10. cxd4 {[%clk 0:09:41.3]} 10... d5 {[%clk 0:09:44.6]}
11. e5 {[%clk 0:09:34.1]} 11... Ne4 {[%clk 0:09:45.7]} 12. Nbd2 {[%clk
0:09:18.6]} 12... Nxd2 {[%clk 0:08:23.6]} 13. Bxd2 {[%clk 0:09:19.1]} 13... Nc6
{[%clk 0:08:23.1]} 14. b4 {[%clk 0:08:56.2]} 14... a6 {[%clk 0:08:14.4]} 15. a4
{[%clk 0:08:51.8]} 15... b5 {[%clk 0:07:43.6]} 16. axb5 {[%clk 0:08:42.7]} 16...
axb5 {[%clk 0:07:45.5]} 17. Qc2 {[%clk 0:08:29.2]} 17... e6 {[%clk 0:07:29]} 18.
Qc5 {[%clk 0:07:55.6]} 18... Rab8 {[%clk 0:06:37.2]} 19. Qc3 {[%clk 0:06:45]}
19... Rfc8 {[%clk 0:06:12.6]} 20. Qd3 {[%clk 0:06:38.7]} 20... Ne7 {[%clk
0:05:41.8]} 21. Bg5 {[%clk 0:06:06.2]} 21... Rc4 {[%clk 0:05:30.8]} 22. Reb1
{[%clk 0:05:39.8]} 22... Nc6 {[%clk 0:05:27]} 23. Qd2 {[%clk 0:05:33.5]} 23...
Bf8 {[%clk 0:05:24.7]} 24. Bf6 {[%clk 0:05:23.6]} 24... Rxb4 {[%clk 0:05:22.3]}
25. Rxb4 {[%clk 0:05:18.6]} 25... Bxb4 {[%clk 0:04:52.9]} 26. Qf4 {[%clk
0:05:05.2]} 26... Bf8 {[%clk 0:04:50.9]} 27. Nh2 {[%clk 0:05:04]} 27... b4
{[%clk 0:04:02.7]} 28. Ng4 {[%clk 0:04:53.1]} 28... h5 {[%clk 0:04:02.7]} 29.
Nh2 {[%clk 0:04:00.9]} 29... b3 {[%clk 0:03:52.4]} 30. g4 {[%clk 0:04:01.1]}
30... b2 {[%clk 0:03:47.3]} 31. Rb1 {[%clk 0:04:02.2]} 31... Qa7 {[%clk
0:02:38.6]} 32. Nf3 {[%clk 0:03:23.5]} 32... Qa1 {[%clk 0:02:21.8]} 33. Nd2
{[%clk 0:03:23.8]} 33... Rb4 {[%clk 0:02:13.5]} 34. gxh5 {[%clk 0:00:58.2]}
34... Rxd4 {[%clk 0:02:09.9]} 35. Qg5 {[%clk 0:00:58.2]} 35... Rxd2 {[%clk
0:02:07.4]} 36. hxg6 {[%clk 0:00:59.2]} 36... Qxb1+ {[%clk 0:02:07.8]} 37. Kg2
{[%clk 0:00:59.8]} 37... Qxg6 {[%clk 0:02:08.1]} 0-1

[Event "GrandPrix_29.05"]
[Site "Chess.com"]
[Date "2020.05.29"]
[Round "5"]
[White "kirillshevchenko"]
[Black "DaVinci81"]
[Result "1/2-1/2"]
[WhiteElo "2722"]
[BlackElo "2529"]
[TimeControl "600+2"]
[EndTime "11:29:19 PDT"]
[Termination "Game drawn by repetition"]

1. e4 {[%clk 0:10:01.9]} 1... e5 {[%clk 0:10:00.3]} 2. Nf3 {[%clk 0:10:02.4]}
2... Nc6 {[%clk 0:10:01.4]} 3. Bb5 {[%clk 0:10:03.6]} 3... a6 {[%clk 0:10:02.5]}
4. Ba4 {[%clk 0:10:04.8]} 4... Nf6 {[%clk 0:10:03.4]} 5. O-O {[%clk 0:10:05.5]}
5... Be7 {[%clk 0:10:04]} 6. Re1 {[%clk 0:10:05.2]} 6... b5 {[%clk 0:10:04.8]}
7. Bb3 {[%clk 0:10:06.7]} 7... d6 {[%clk 0:10:05]} 8. c3 {[%clk 0:10:08.2]} 8...
O-O {[%clk 0:10:05.9]} 9. h3 {[%clk 0:10:09.1]} 9... Nb8 {[%clk 0:10:06.4]} 10.
d4 {[%clk 0:10:09.5]} 10... Nbd7 {[%clk 0:10:07.2]} 11. Nbd2 {[%clk 0:10:11.2]}
11... Bb7 {[%clk 0:10:07.9]} 12. Bc2 {[%clk 0:10:12.1]} 12... c5 {[%clk
0:10:08.7]} 13. Nf1 {[%clk 0:10:05.8]} 13... cxd4 {[%clk 0:09:59.8]} 14. cxd4
{[%clk 0:10:05.8]} 14... exd4 {[%clk 0:10:00.6]} 15. Nxd4 {[%clk 0:09:35.2]}
15... Re8 {[%clk 0:09:57.4]} 16. Bf4 {[%clk 0:08:58.8]} 16... Bf8 {[%clk
0:09:55]} 17. Ng3 {[%clk 0:08:50.1]} 17... g6 {[%clk 0:09:43]} 18. a4 {[%clk
0:06:54.2]} 18... bxa4 {[%clk 0:08:55.3]} 19. Bxa4 {[%clk 0:05:35.2]} 19... Nxe4
{[%clk 0:07:34.7]} 20. Nc6 {[%clk 0:03:47.5]} 20... Qb6 {[%clk 0:04:15.5]} 21.
Nxe4 {[%clk 0:03:39.6]} 21... Bxc6 {[%clk 0:04:15.5]} 22. Be3 {[%clk 0:03:39.7]}
22... Bxa4 {[%clk 0:03:57.2]} 23. Qxa4 {[%clk 0:03:17.3]} 23... Qb5 {[%clk
0:03:57.7]} 24. Qxb5 {[%clk 0:02:52.4]} 24... axb5 {[%clk 0:03:58.1]} 25. Rxa8
{[%clk 0:02:53.6]} 25... Rxa8 {[%clk 0:03:58.4]} 26. Rd1 {[%clk 0:02:55.5]}
26... Ra6 {[%clk 0:03:40.2]} 27. Bf4 {[%clk 0:02:50.3]} 27... Ra4 {[%clk
0:03:15.3]} 28. f3 {[%clk 0:02:31.3]} 28... f5 {[%clk 0:03:06.5]} 29. b3 {[%clk
0:02:27.6]} 29... Rb4 {[%clk 0:03:02]} 30. Bxd6 {[%clk 0:02:27.1]} 30... Rxb3
{[%clk 0:02:59.3]} 31. Ng5 {[%clk 0:02:11.6]} 31... Bxd6 {[%clk 0:02:20.3]} 32.
Rxd6 {[%clk 0:02:11.6]} 32... Nf8 {[%clk 0:02:21.3]} 33. f4 {[%clk 0:01:53.1]}
33... Rb4 {[%clk 0:02:16.6]} 34. Rb6 {[%clk 0:01:41.2]} 34... h6 {[%clk
0:02:03.4]} 35. Nf3 {[%clk 0:01:41]} 35... Rxf4 {[%clk 0:02:03.1]} 36. Rxb5
{[%clk 0:01:39.5]} 36... Re4 {[%clk 0:02:04.6]} 37. Rb7 {[%clk 0:01:38.7]} 37...
Re6 {[%clk 0:02:02]} 38. Kf2 {[%clk 0:01:34.9]} 38... Nh7 {[%clk 0:01:59.4]} 39.
Rb8+ {[%clk 0:01:32.1]} 39... Kg7 {[%clk 0:01:57.3]} 40. Rb7+ {[%clk 0:01:32.8]}
40... Kg8 {[%clk 0:01:58.3]} 41. Rb8+ {[%clk 0:01:34]} 41... Nf8 {[%clk
0:01:57.4]} 42. Rb7 {[%clk 0:01:34.6]} 42... Rf6 {[%clk 0:01:53.6]} 43. Ne5
{[%clk 0:01:30.7]} 43... Re6 {[%clk 0:01:54.2]} 44. Nf3 {[%clk 0:01:31.1]}
1/2-1/2

[Event "GrandPrix_29.05"]
[Site "Chess.com"]
[Date "2020.05.29"]
[Round "5"]
[White "Infernal_XaM"]
[Black "mishanick"]
[Result "0-1"]
[WhiteElo "2759"]
[BlackElo "2845"]
[TimeControl "600+2"]
[EndTime "11:29:20 PDT"]
[Termination "mishanick won by resignation"]

1. c4 {[%clk 0:10:01.9]} 1... e5 {[%clk 0:10:00.8]} 2. Nc3 {[%clk 0:10:02.3]}
2... Nf6 {[%clk 0:10:02.2]} 3. e3 {[%clk 0:10:03.1]} 3... Bb4 {[%clk 0:10:01.8]}
4. Nge2 {[%clk 0:10:03.5]} 4... O-O {[%clk 0:10:01.3]} 5. a3 {[%clk 0:10:03.9]}
5... Be7 {[%clk 0:10:00.2]} 6. d4 {[%clk 0:10:01.7]} 6... exd4 {[%clk 0:09:59]}
7. Nxd4 {[%clk 0:10:00.5]} 7... d5 {[%clk 0:09:58.9]} 8. cxd5 {[%clk 0:09:57.2]}
8... Nxd5 {[%clk 0:10:00.8]} 9. Bd2 {[%clk 0:09:56.7]} 9... Bf6 {[%clk
0:09:25.2]} 10. Ndb5 {[%clk 0:09:50.8]} 10... Nb6 {[%clk 0:08:31.5]} 11. a4
{[%clk 0:08:22.2]} 11... a5 {[%clk 0:08:31]} 12. Ne4 {[%clk 0:07:42.9]} 12...
Bxb2 {[%clk 0:07:42.4]} 13. Rb1 {[%clk 0:07:20.5]} 13... Be5 {[%clk 0:07:41.2]}
14. f4 {[%clk 0:07:00.2]} 14... Bf5 {[%clk 0:07:22.5]} 15. Qf3 {[%clk
0:06:58.1]} 15... Qd5 {[%clk 0:06:45.6]} 16. Ng3 {[%clk 0:05:31.2]} 16... Qxf3
{[%clk 0:06:42.2]} 17. gxf3 {[%clk 0:05:31.7]} 17... Bxb1 {[%clk 0:06:24.6]} 18.
fxe5 {[%clk 0:05:32.6]} 18... Nc6 {[%clk 0:06:06.3]} 19. f4 {[%clk 0:05:19.6]}
19... Nxa4 {[%clk 0:05:59.1]} 20. Na3 {[%clk 0:05:06.6]} 20... Ba2 {[%clk
0:05:13]} 21. Rg1 {[%clk 0:05:07]} 21... g6 {[%clk 0:04:58.2]} 22. Ne4 {[%clk
0:05:05.7]} 22... Be6 {[%clk 0:04:48.4]} 23. h4 {[%clk 0:04:40.1]} 23... Rfd8
{[%clk 0:04:40.5]} 24. h5 {[%clk 0:04:36.8]} 24... Ne7 {[%clk 0:04:24.1]} 25.
Bb5 {[%clk 0:04:24]} 25... Nb2 {[%clk 0:03:58.4]} 26. Nf6+ {[%clk 0:04:13.6]}
26... Kg7 {[%clk 0:03:58.7]} 27. e4 {[%clk 0:03:58.1]} 27... c6 {[%clk
0:03:21.3]} 28. Be2 {[%clk 0:03:21]} 28... Nd3+ {[%clk 0:03:02.7]} 29. Bxd3
{[%clk 0:03:03.5]} 29... Rxd3 {[%clk 0:03:02.9]} 30. f5 {[%clk 0:02:59.4]} 30...
Rxa3 {[%clk 0:02:50.2]} 31. fxe6 {[%clk 0:02:35.6]} 31... fxe6 {[%clk
0:02:08.4]} 32. Ke2 {[%clk 0:02:35.6]} 32... Ra2 {[%clk 0:01:54.8]} 33. Rh1
{[%clk 0:02:08.4]} 33... Rd8 {[%clk 0:01:41.7]} 34. h6+ {[%clk 0:02:09.5]} 34...
Kh8 {[%clk 0:01:40.1]} 35. Rd1 {[%clk 0:02:06.6]} 35... a4 {[%clk 0:01:29.1]}
36. Ke3 {[%clk 0:02:06]} 36... Ng8 {[%clk 0:01:21.4]} 37. Ng4 {[%clk 0:01:58.6]}
37... a3 {[%clk 0:01:13.2]} 0-1